Cogmind - Beta 13 @@@ ROGUE MODE // 2024.06.15 @ 21:41:45 Player: Gabe+Kate4EVR Result: Destroyed by S-27 Virus with Autogun Performance ------------- Evolutions (5) 2500 Regions Visited (7) 1400 Robots Destroyed (35) 175 Value Destroyed (1055) 1055 Prototype IDs (2) 40 Alien Tech Used (0) 0 Bonus (500) 500 TOTAL SCORE: 5670 Bonus ------- Entered DSFs 500 Cogmind --------- Core Integrity 0/1000 Matter 163/300 Energy 46/100 System Corruption 6% Temperature Cool (0) Movement Core (100) Ox1 Location -5/Factory Parts ------- > --- POWER (2) -------- (None) > --- PROPULSION (7) --- (None) > --- UTILITY (6) ------ (None) > --- WEAPON (2) ------- Hypervelocity Coil Gun > --- INVENTORY (5) ---- Advanced Treads Cooled Airjet ECM Suite Reaction Control System Plasma Cutter Peak State ------------ > --- POWER ------------ Deuterium Engine Deuterium Engine > --- PROPULSION ------- Cooled Airjet Antigrav System Gyrokinetic Inverter Gyrokinetic Inverter Gyrokinetic Inverter Gyrokinetic Inverter Gyrokinetic Inverter > --- UTILITY ---------- Heat Sink Improved Heat Sink Large Storage Unit Trap Scanner Enhanced Optical Array Improved Signal Interpreter > --- WEAPON ----------- Thermic Laser Coil Gun > --- INVENTORY -------- Light Ion Engine Advanced Treads Airjet Airjet Cooled Airjet Gyrokinetic Inverter ECM Suite Reaction Control System Improved Thermal Shield Precision Beam Rifle Coil Gun Grenade Launcher Plasma Cutter Katana [Rating: 77] Favorites ----------- Power Deuterium Engine Engine Deuterium Engine Power Core Micro Fission Core Propulsion Gyrokinetic Inverter Leg Aluminum Leg Wheel Compact Wheel Hover Unit Gyrokinetic Inverter Flight Unit Improved Surge Thruster Utility Large Storage Unit Device Trap Scanner Storage Large Storage Unit Processor Enhanced Optical Array Weapon Thermic Laser Energy Gun Thermic Laser Ballistic Gun Coil Gun Ballistic Cannon Heavy Flak Cannon Launcher Grenade Launcher Build | -11 -10 -9 -8 -7 -6 -6 -5 ------- Run | Yrd Mat Mat Mat Fac Fac DSF Fac Slots Evolved 10 | . . 2 2 2 2 . 2 Power 1 | . . . . . 1 . . Propulsion 5 | . . 2 . 1 . . 2 Utility 4 | . . . 2 1 1 . . Weapon . | . . . . . . . . Parts Attached 87 | 7 12 26 8 4 . 12 18 Power 12 | 1 . 2 3 2 . 2 2 Engine 11 | 1 . 2 3 2 . 2 1 Core 1 | . . . . . . . 1 Reactor . | . . . . . . . . Propulsion 34 | 3 5 11 . 1 . 5 9 Treads . | . . . . . . . . Leg 14 | 2 5 7 . . . . . Wheel 1 | 1 . . . . . . . Hover 18 | . . 4 . 1 . 5 8 Flight 1 | . . . . . . . 1 Utility 17 | 1 2 3 3 1 . 5 2 Device 10 | . 1 1 2 1 . 3 2 Storage 4 | 1 1 1 1 . . . . Processor 3 | . . 1 . . . 2 . Hackware . | . . . . . . . . Protection . | . . . . . . . . Artifact . | . . . . . . . . Weapon 24 | 2 5 10 2 . . . 5 Energy Gun 15 | 1 4 8 1 . . . 1 Energy Cannon . | . . . . . . . . Ballistic Gun 7 | 1 1 2 1 . . . 2 Ballistic Cannon 1 | . . . . . . . 1 Launcher 1 | . . . . . . . 1 Special Weapon . | . . . . . . . . Impact Weapon . | . . . . . . . . Slashing Weapon . | . . . . . . . . Piercing Weapon . | . . . . . . . . Special Melee Weapon . | . . . . . . . . Unidentified Prototypes 2 | . . 1 . . . . 1 Parts Lost 31 | . 1 5 . . . 6 19 Power 5 | . . 1 . . . . 4 Propulsion 13 | . . 3 . . . 2 8 Utility 7 | . . . . . . 3 4 Weapon 6 | . 1 1 . . . 1 3 Highest Loss Streak 11 | . 1 4 . . . 6 11 To Critical Strikes . | . . . . . . . . Average Slot Usage (%) 89 | . 83 96 92 97 . 87 88 Engine 9 | . 14 9 9 7 . 8 9 Leg 11 | . 28 40 . . . . . Hover 26 | . . 2 36 38 . 33 39 Device 8 | . . . 14 20 . 20 12 Storage 7 | . 14 11 9 7 . 6 4 Processor 8 | . . 10 9 7 . 7 10 Energy Gun 9 | . 15 19 9 15 . 10 4 Ballistic Gun 3 | . 11 1 5 . . . 2 Naked Turns 12 | . . . . . . . 12 Heaviest Build 51 | 13 28 36 37 38 38 47 51 Greatest Support 63 | 20 20 40 32 40 40 52 63 Greatest Overweight (x) 4 | . 1 4 1 . . 1 1 Average Overweight (x) . | . . . . . . . . Largest Inventory Capacity 15 | 8 15 15 15 15 15 15 15 Average Capacity 14 | 6 11 15 15 15 15 15 14 Most Carried 15 | 1 13 15 15 15 15 15 15 Average Carried 12 | . 8 14 14 14 15 14 13 Final Capacity 15 | 8 15 15 15 15 15 15 5 Final Carried 15 | 1 13 15 15 15 15 14 5 Class Distribution -------------------- 81% | Mutant 18% | Scavenger-Mutant Dominant Class ---------------- Mutant | -10/Materials Scavenger-Mutant | -9/Materials Mutant | -8/Materials Mutant | -7/Factory Mutant | -6/Factory Mutant | -6/DSF Mutant | -5/Factory Resources | -11 -10 -9 -8 -7 -6 -6 -5 ----------- Run | Yrd Mat Mat Mat Fac Fac DSF Fac Matter Collected 1036 | 237 189 156 92 . . 114 248 Remotely . | . . . . . . . . Salvage Created 1240 | . 426 404 118 . . . 292 Parts 75 | . 26 17 19 . . . 13 Haulers Intercepted 1 | . 1 . . . . . . Recyclers Shooed 1 | . . . . . . . 1 Parts Field Recycled . | . . . . . . . . Retrieved Matter . | . . . . . . . . Parts Self-Destructed . | . . . . . . . . Prevented . | . . . . . . . . Kills | -11 -10 -9 -8 -7 -6 -6 -5 ------- Run | Yrd Mat Mat Mat Fac Fac DSF Fac Combat Hostiles Destroyed 28 | . 10 8 4 . . . 6 Guns 27 | . 10 8 4 . . . 5 AOE 1 | . . . . . . . 1 Classes Destroyed 10 | . 5 2 1 . . . 2 Worker 1 | . . . . . . . 1 Builder 3 | . . . 3 . . . . Tunneler 1 | . 1 . . . . . . Hauler 1 | . 1 . . . . . . Operator 1 | . 1 . . . . . . Swarmer 9 | . 3 . 4 . . . 2 Grunt 12 | . 7 5 . . . . . Brawler 1 | . . 1 . . . . . Sentry 2 | . . 2 . . . . . Programmer 4 | . . . . . . . 4 Best Kill Streak 5 | . 5 2 5 . . . 2 Combat Bots Only 5 | . 5 2 4 . . . 2 Max Kills in Single Turn 2 | . 2 1 2 . . . 1 Gunslinging . | . . . . . . . . Exploded 1 | . . . . . . . 1 Melee . | . . . . . . . . Uniques/NPCs Destroyed . | . . . . . . . . Combat | -11 -10 -9 -8 -7 -6 -6 -5 -------- Run | Yrd Mat Mat Mat Fac Fac DSF Fac Hostile Shots Fired 352 | . 42 85 22 . . 32 171 Missed 125 | . 13 20 11 . . 14 67 Damage Taken 4323 | . 334 811 310 . . 713 2155 Core 1515 | . 32 124 118 . . 228 1013 Absorbed by Shields . | . . . . . . . . Core Remaining (%) 84 | 100 87 69 78 100 . 73 . Volleys Fired 129 | . 47 42 10 . . . 30 Largest 2 | . 2 2 2 . . . 2 Hottest 115 | . 70 80 86 . . . 115 Shots Fired 251 | . 93 82 20 . . . 56 Gun 248 | . 93 82 20 . . . 53 Cannon 2 | . . . . . . . 2 Launcher 1 | . . . . . . . 1 Special . | . . . . . . . . Kinetic 89 | . 46 4 10 . . . 29 Thermal 161 | . 47 78 10 . . . 26 Explosive 1 | . . . . . . . 1 Electromagnetic . | . . . . . . . . Robot Hit Streak 14 | . 10 14 4 . . . 12 Robot Miss Streak 7 | . 3 3 4 . . . 7 Penetration Max 1 | . . . . . . . 1 Secondary Targets 3 | . . 1 1 . . . 1 Max Gunslinging Chain 1 | . . 1 1 . . . 1 Shots Hit Robots 167 | . 61 56 11 . . . 39 Core Hits 69 | . 26 17 8 . . . 18 Critical Kills 2 | . 1 . . . . . 1 Critical Parts Destroyed 1 | . 1 . . . . . . Critical Strikes 10 | . 5 . . . . . 5 Burn 7 | . 3 . . . . . 4 Destroy 3 | . 2 . . . . . 1 Melee Attacks . | . . . . . . . . Impact . | . . . . . . . . Slashing . | . . . . . . . . Piercing . | . . . . . . . . Sneak Attacks . | . . . . . . . . Combat Hostiles . | . . . . . . . . Follow-up Attacks . | . . . . . . . . Damage Inflicted 2533 | . 639 618 308 . . . 968 Guns 2365 | . 639 618 250 . . . 858 Cannons 22 | . . . . . . . 22 Explosions 134 | . . . 58 . . . 76 Melee . | . . . . . . . . Ramming 12 | . . . . . . . 12 Kinetic 924 | . 277 31 148 . . . 468 Thermal 1463 | . 362 587 102 . . . 412 Explosive 134 | . . . 58 . . . 76 Electromagnetic . | . . . . . . . . Impact . | . . . . . . . . Slashing . | . . . . . . . . Piercing . | . . . . . . . . Highest Corruption 6 | . . . . . . . 6 Average Corruption 3 | . . . . . . . 3 Corruption Purged . | . . . . . . . . Corruption Blocked . | . . . . . . . . Effects 22 | . . . . . . . 22 Message Errors 3 | . . . . . . . 3 Matter Fused 4 | . . . . . . . 4 Heat Flow Errors 5 | . . . . . . . 5 Energy Discharges 1 | . . . . . . . 1 Data Loss (minor) 3 | . . . . . . . 3 Data Loss (major) 4 | . . . . . . . 4 Misfires 2 | . . . . . . . 2 Overload Shots . | . . . . . . . . Overflow Damage 13 | . . . 13 . . . . Projectiles . | . . . . . . . . Explosions 13 | . . . 13 . . . . Melee . | . . . . . . . . Knockbacks . | . . . . . . . . Impact . | . . . . . . . . Kinetic . | . . . . . . . . Secondary . | . . . . . . . . Self-Inflicted Damage 201 | . . . 168 . . . 33 Shots 3 | . . . 2 . . . 1 Rammed 3 | . . . . . . . 3 Targets Rammed 3 | . . . . . . . 3 Kicked . | . . . . . . . . Crushed . | . . . . . . . . Highest Temperature 654 | . 244 339 58 . . . 654 Average Temperature 156 | . 85 170 21 . . . 222 Received Heat Transfer 828 | . 174 420 81 . . . 153 Effects 23 | . . 3 . . . . 20 Shutdowns 5 | . . . . . . . 5 Energy Bleed 2 | . . 1 . . . . 1 Interference 5 | . . . . . . . 5 Short Circuit 3 | . . . . . . . 3 Damage (minor) 6 | . . 2 . . . . 4 Damage (major) 2 | . . . . . . . 2 Siege Activations . | . . . . . . . . Robots Corrupted . | . . . . . . . . Combat Hostiles . | . . . . . . . . Parts Fried . | . . . . . . . . Impact Corruptions . | . . . . . . . . Robots Melted . | . . . . . . . . Combat Hostiles . | . . . . . . . . Parts Melted 10 | . 1 3 . . . . 6 Heat Transferred 4267 | . 1295 1350 222 . . . 1400 Parts Sabotaged . | . . . . . . . . Parts Stolen . | . . . . . . . . Parts Stripped . | . . . . . . . . Power Chain Reactions . | . . . . . . . . Alert | -11 -10 -9 -8 -7 -6 -6 -5 ------- Run | Yrd Mat Mat Mat Fac Fac DSF Fac Peak Influence 339 | . 339 162 264 134 65 49 197 Initial 119 | . . 58 39 119 65 49 . Average 62 | . 170 77 139 119 65 23 15 Maximum Alert Level 1 | . 1 . 1 . . . . Low Security (%) 92 | 100 70 100 61 100 100 100 100 Level 1 7 | . 29 . 38 . . . . Level 2 . | . . . . . . . . Level 3 . | . . . . . . . . Level 4 . | . . . . . . . . Level 5 . | . . . . . . . . High Security . | . . . . . . . . Max Security . | . . . . . . . . Squads Dispatched 9 | . 2 1 . . . 1 5 Investigation 1 | . 1 . . . . . . Extermination 2 | . . . . . . . 2 Reinforcement 4 | . 1 1 . . . 1 1 Assault . | . . . . . . . . Garrison 2 | . . . . . . . 2 Intercept . | . . . . . . . . Searches Triggered . | . . . . . . . . Construction Impeded . | . . . . . . . . Haulers Reinforced . | . . . . . . . . Active Scanning Responses . | . . . . . . . . Cargo Convoy Interrupts . | . . . . . . . . Stealth | -11 -10 -9 -8 -7 -6 -6 -5 --------- Run | Yrd Mat Mat Mat Fac Fac DSF Fac Distress Signals 3 | . 1 1 . . . . 1 Communications Jammed . | . . . . . . . . Distress Signals . | . . . . . . . . Times Spotted 76 | . 18 13 11 . . 4 30 Peak Tracking Total 20 | . 5 8 6 . . 4 20 Tactical Retreats 5 | . . . . . . . 5 Traps | -11 -10 -9 -8 -7 -6 -6 -5 ------- Run | Yrd Mat Mat Mat Fac Fac DSF Fac Traps Triggered 2 | . . 2 . . . . . Indirectly . | . . . . . . . . Trap Hack Attempts . | . . . . . . . . Triggered . | . . . . . . . . Disarmed . | . . . . . . . . Reprogrammed . | . . . . . . . . Reused . | . . . . . . . . Traps Extracted . | . . . . . . . . Installed . | . . . . . . . . Triggered . | . . . . . . . . Machines | -11 -10 -9 -8 -7 -6 -6 -5 ---------- Run | Yrd Mat Mat Mat Fac Fac DSF Fac Machines Disabled 5 | . . . 3 . . . 2 Max in Single Turn 2 | . . . 2 . . . 1 Machines Repaired . | . . . . . . . . Machines Dismantled . | . . . . . . . . Machines Sabotaged . | . . . . . . . . Overloaded Fab Kills . | . . . . . . . . Hacking | -11 -10 -9 -8 -7 -6 -6 -5 --------- Run | Yrd Mat Mat Mat Fac Fac DSF Fac Machines Accessed 7 | . 1 1 . 2 1 . 2 Terminals 5 | . 1 1 . . 1 . 2 Fabricators . | . . . . . . . . Repair Stations 2 | . . . . 2 . . . Recycling Units . | . . . . . . . . Scanalyzers . | . . . . . . . . Garrison Access . | . . . . . . . . Total Hacks 17 | . 4 1 . 5 1 . 6 Successful 6 | . 1 1 . 1 1 . 2 Failed 11 | . 3 . . 4 . . 4 Catastrophic 2 | . 1 . . 1 . . . Database Lockouts . | . . . . . . . . Manual 4 | . 4 . . . . . . Terminals 12 | . 4 1 . . 1 . 6 Fabricators . | . . . . . . . . Repair Stations 5 | . . . . 5 . . . Recycling Units . | . . . . . . . . Scanalyzers . | . . . . . . . . Garrison Access . | . . . . . . . . Terminal Hacks 5 | . 1 1 . . 1 . 2 Open DSF 3 | . . . . . 1 . 2 Alert Level 1 | . 1 . . . . . . Zone Layout 1 | . . 1 . . . . . Fabricator Hacks . | . . . . . . . . Repair Station Hacks 1 | . . . . 1 . . . Scan Component 1 | . . . . 1 . . . Recycling Unit Hacks . | . . . . . . . . Scanalyzer . | . . . . . . . . Garrison Access Hacks . | . . . . . . . . Unauthorized Hacks . | . . . . . . . . Terminals . | . . . . . . . . Fabricators . | . . . . . . . . Repair Stations . | . . . . . . . . Recycling Units . | . . . . . . . . Scanalyzers . | . . . . . . . . Garrison Access . | . . . . . . . . Data Cores Recovered . | . . . . . . . . Used . | . . . . . . . . Hacking Detections 4 | . 1 . . 2 . . 1 Full Trace Events 1 | . 1 . . . . . . Feedback Events . | . . . . . . . . Feedback Blocked . | . . . . . . . . Robot Schematics Acquired . | . . . . . . . . Robots Built . | . . . . . . . . Authchips . | . . . . . . . . Time . | . . . . . . . . Total Robot Build Rating . | . . . . . . . . Part Schematics Acquired . | . . . . . . . . Parts Built . | . . . . . . . . Authchips . | . . . . . . . . Time . | . . . . . . . . Total Part Build Rating . | . . . . . . . . Parts Repaired . | . . . . . . . . Time . | . . . . . . . . Parts Recycled . | . . . . . . . . Recycled Matter . | . . . . . . . . Retrieved Matter . | . . . . . . . . Retrieved Components . | . . . . . . . . Parts Scanalyzed . | . . . . . . . . Part Schematics Acquired . | . . . . . . . . Parts Damaged . | . . . . . . . . Bothacking | -11 -10 -9 -8 -7 -6 -6 -5 ------------ Run | Yrd Mat Mat Mat Fac Fac DSF Fac Used RIF Installer . | . . . . . . . . Robots Hacked . | . . . . . . . . Non-combat . | . . . . . . . . Combat . | . . . . . . . . Robot Hacks Applied . | . . . . . . . . Relay Couplers Released . | . . . . . . . . Fabnet Peak Effective % . | . . . . . . . . Robots Rewired . | . . . . . . . . Allies Hacked . | . . . . . . . . Hacks Repelled . | . . . . . . . . Allies | -11 -10 -9 -8 -7 -6 -6 -5 -------- Run | Yrd Mat Mat Mat Fac Fac DSF Fac Total Allies . | . . . . . . . . Largest Group . | . . . . . . . . Highest-Rated Group . | . . . . . . . . Highest-Rated Ally . | . . . . . . . . Total Orders . | . . . . . . . . Ally Attacks . | . . . . . . . . Total Damage . | . . . . . . . . Kills . | . . . . . . . . Allies Corrupted . | . . . . . . . . Allies Melted . | . . . . . . . . Intel | -11 -10 -9 -8 -7 -6 -6 -5 ------- Run | Yrd Mat Mat Mat Fac Fac DSF Fac Robot Analysis Total . | . . . . . . . . Derelict Logs Recovered . | . . . . . . . . Drone Launches . | . . . . . . . . Drone Recoveries . | . . . . . . . . Exploration | -11 -10 -9 -8 -7 -6 -6 -5 ------------- Run | Yrd Mat Mat Mat Fac Fac DSF Fac Turns Passed 3153 | 68 468 569 244 91 4 72 1637 Spaces Moved 1554 | 50 190 313 174 169 8 98 552 Core 44 | 4 . . . . . . 40 Treads . | . . . . . . . . Legs 521 | 42 190 289 . . . . . Wheels 4 | 4 . . . . . . . Hover 937 | . . 24 174 169 8 98 464 Flight 48 | . . . . . . . 48 Fastest Speed 27 | 50 120 48 48 44 44 44 27 Average Speed 77 | 112 152 117 53 44 44 49 50 Slowest Speed 310 | 120 190 310 108 44 44 100 106 Overloaded Moves 47 | . . . . . . . 47 Propulsion Burnouts . | . . . . . . . . Robots Hopped 1 | . . . . . . . 1 Cave-ins Triggered . | . . . . . . . . Exploration Rate (%) 30 | 3 32 36 24 5 . 91 19 Regions Visited 7 Branch Regions . Pre-discovered Areas . | . . . . . . . . Known Exits Taken 1 | . . . . . 1 . . Unknown Exits Taken 5 | 1 1 1 1 1 . . . Scrap Searched . | . . . . . . . . Spaces Dug . | . . . . . . . . Terrain Destroyed 54 | . . . 45 . . . 9 Melee . | . . . . . . . . Projectile 1 | . . . . . . . 1 AOE 53 | . . . 45 . . . 8 Terrain Rammed . | . . . . . . . . Walls Destroyed . | . . . . . . . . Machines Disabled . | . . . . . . . . Actions | -11 -10 -9 -8 -7 -6 -6 -5 --------- Run | Yrd Mat Mat Mat Fac Fac DSF Fac Total 3259 | 58 285 439 306 187 7 120 1857 Wait 1388 | 1 18 26 104 1 . . 1238 Move 1545 | 49 189 312 173 168 7 97 550 Hop 1 | . . . . . . . 1 Pick Up 46 | . 11 10 3 8 . 4 10 Fast Attach 46 | 7 3 15 5 . . 8 8 Attach 21 | . 4 5 1 2 . 1 8 Detach 9 | 1 4 3 1 . . . . Swap 20 | . 5 6 2 2 . 3 2 Drop 51 | . 4 20 7 6 . 7 7 Fire 129 | . 47 42 10 . . . 30 Melee . | . . . . . . . . Ram 3 | . . . . . . . 3 Kick . | . . . . . . . . Crush . | . . . . . . . . Escape Stasis . | . . . . . . . . Rewire . | . . . . . . . . Trap . | . . . . . . . . Miscellaneous . | . . . . . . . . Route ------- -11/Scrapyard -10/Materials -9/Materials -8/Materials -7/Factory -6/Factory -6/DSF -5/Factory History --------- Turn | Location | Event 11 | -11/Scrapyard | Discovered new exit (range 15) 69 | -11/Scrapyard | Entered Materials 319 | -10/Materials | Build established: Mutant 406 | -10/Materials | Discovered new exit (range 16) 537 | -10/Materials | Entered another Materials area 537 | -9/Materials | Evolved 2 slots: Propulsion x2 758 | -9/Materials | Build established: Scavenger-Mutant 962 | -9/Materials | Lost 4 parts (1p2n1w) 1045 | -9/Materials | Discovered new exit (range 8) 1106 | -9/Materials | Entered another Materials area 1106 | -8/Materials | Evolved 2 slots: Utility x2 1347 | -8/Materials | Discovered new exit (range 8) 1350 | -8/Materials | Entered Factory 1350 | -7/Factory | Evolved 2 slots: Propulsion x1, Utility x1 1421 | -7/Factory | Build established: Mutant 1433 | -7/Factory | Discovered new exit (range 15) 1441 | -7/Factory | Entered another Factory area 1441 | -6/Factory | Evolved 2 slots: Power x1, Utility x1 1445 | -6/Factory | Identified exit to DSF 1445 | -6/Factory | Entered DSF 1462 | -6/DSF | Additional patrols routed to DSF 1503 | -6/DSF | Discovered new exit (range 16) 1516 | -6/DSF | Identified exit to Factory 1517 | -6/DSF | Entered Factory 1517 | -5/Factory | Evolved 2 slots: Propulsion x2 1533 | -5/Factory | Lost 6 parts (2n3u1w) 2196 | -5/Factory | Garrison activated, responded to threat 3000 | -5/Factory | Lost 5 parts (2p1n2u) 3013 | -5/Factory | Garrison activated, responded to threat 3113 | -5/Factory | Core integrity fell below 50% 3128 | -5/Factory | Core integrity fell below 20% 3145 | -5/Factory | Lost 11 parts (1p6n1u3w) 3154 | -5/Factory | Destroyed by S-27 Virus with Autogun Last Messages --------------- 03112_ Knocked back. 03114_ Gyrokinetic Inverter destroyed. 03116_ C-35 Carver destroyed. 03120_ Imp. Signal Interpreter severed. 03124_ System corrupted: Substantial component data lost. 03131_ C-35 Carver destroyed. 03131_ K-01 Serf collects debris. 03132_ Acquired Imp. Surge Thruster. 03140_ Connecting with DSF Access... 03141_ U-05 Engineer lays Concrete. 03146_ Acquired Hyp. Coil Gun. 03148_ Acquired Hvy. Flak Cannon. 03149_ System corrupted: FCS attempts to trigger Hvy. Flak Cannon. 03149_ System corrupted: Hvy. Flak Cannon misfires. 03149_ Imp. Surge Thruster destroyed. 03150_ HV Slug penetrates S-27 Virus. 03150_ S-27 Virus suffers critical hit (Destroy). 03150_ S-27 Virus destroyed. 03152_ Hvy. Flak Cannon severed. 03153_ HV Slug penetrates C-35 Carver. Map ----- +----------------------------------------------------+ | ?????????????????????????????? #? = | | ??????????????????????????????? ! #?? | | ??????????????????????????????? #?? | | ???????????????????????????????? #??? | | ???????????????????????????????? #??? | | ??????????????????????###########+##### | | ??????????????????????# | | ??????????????????????# ! | | ??????????????????????# *% | | ??????????????????????# | | ??????????????????????# | | ??????????????????????# #####+##### | | ??????????????????????# #?????????? | | ??????????????????????# #?????????? | | ??????????????????????+ #?????????? | | ??????????????????????# #?????????? | | ??????????????????????# #?????????? | | ????????###########???# #?????????? | | ????????# #???# #?????????? | | ????????# "" #???# #?????????? | | ####????# """ """#???# #?????????? | | # ???# """ R"#???# #?????????? | | # ???# """ """#???# #?????????? | | # ??# #???# #?????????? | | # ??# ssc #???# #?######### | | # ?# =s@] #???# #? | | # ?#+##+########## # ?? | | # # # """""??? | | # # + """""??? | | # + # """""??? | | # # # """""??? | | # # #? ??? | | # ?####+####### # T###? ?? | | # ?# #######???? ? | | # ??# """ #?????????? Y | | # ??# """ """ #??????????? " | | # ???# """ R" #??????????? | | # ???# """ """ #????????????###### | | ####????# #?????????????????? | | ????????# #?????????????????? | | ????????#############?????????????????? | | | | | | | | | | | | | | | | | | | +----------------------------------------------------+ Best States ------------- Heat Dissipation 64 Energy Generation 23 Energy Capacity 450 Matter Stores 300 Matter Capacity 300 Sight Range 22 Robot Scan Range 14 Terrain Scan Density 10 Power Amplification 20 Evasion (%) 64 Item Schematics ----------------- None Robot Schematics ------------------ None Fabricated ------------ Nothing Alien Tech Used ----------------- None Achievements -------------- None Challenges ------------ None Game ------ Seed NetworkLobotomyFlamer Manual? 0 Play Time 00:30:37 Cumulative 179.4 hours Start 2024.06.15 @ 20:52:29 End 2024.06.15 @ 21:41:45 Sessions 1 Manual Loads 0 Difficulty Rogue Special Mode None Game No. 355 Rogue 355 Adventurer 0 Explorer 0 Win Type - Total 0 Types 0/0/0/0/0/0/0/0/0 Lore% 48 Gallery% 66 Achievement% 46 Wizard Run 0 Options --------- Layout 0 ASCII 0 Keyboard 1 Movement Numpad Keybinds 0 Fullscreen 2 Font 18/X11 Map View 76x50 Zoom Use 0% Tactical HUD 1 Map Filters NONE Filters NONE Steam 1 RUN: 451759fe-7120-4169-89b3-b24323fbc753